[Event "*** Titled Tuesday Blitz"]
[Site "Chess.com"]
[Date "2019.01.01"]
[Round "3"]
[White "jcibarra"]
[Black "Caterpiller35"]
[Result "1-0"]
[WhiteElo "2728"]
[BlackElo "2405"]
[TimeControl "180+2"]
[EndTime "13:32:40 PST"]
[Termination "jcibarra won by resignation"]

1. e4 {[%clk 0:03:01.9]} 1... c5 {[%clk 0:02:57.3]} 2. Nf3 {[%clk 0:03:02.7]}
2... g6 {[%clk 0:02:58.4]} 3. d4 {[%clk 0:03:03.4]} 3... cxd4 {[%clk 0:03:00.3]}
4. Qxd4 {[%clk 0:03:03.6]} 4... Nf6 {[%clk 0:03:01.3]} 5. Nc3 {[%clk 0:03:04.9]}
5... Nc6 {[%clk 0:03:01.7]} 6. Qa4 {[%clk 0:03:05.8]} 6... d6 {[%clk 0:03:02.3]}
7. e5 {[%clk 0:03:07.2]} 7... dxe5 {[%clk 0:03:02.8]} 8. Nxe5 {[%clk 0:03:09.1]}
8... Bg7 {[%clk 0:03:03.6]} 9. Bb5 {[%clk 0:03:07.4]} 9... O-O {[%clk
0:03:04.3]} 10. Nxc6 {[%clk 0:03:08.6]} 10... bxc6 {[%clk 0:03:06.2]} 11. Bxc6
{[%clk 0:03:10.5]} 11... Rb8 {[%clk 0:03:07.3]} 12. O-O {[%clk 0:03:11.7]} 12...
Bf5 {[%clk 0:03:07.6]} 13. Rd1 {[%clk 0:03:10]} 13... Qc7 {[%clk 0:03:07]} 14.
Bf4 {[%clk 0:03:10.6]} 14... e5 {[%clk 0:03:07.2]} 15. Bg5 {[%clk 0:03:10.9]}
15... Rxb2 {[%clk 0:02:58]} 16. Bxf6 {[%clk 0:03:07.9]} 16... Bxf6 {[%clk
0:02:59.9]} 17. Nd5 {[%clk 0:03:08.8]} 17... Qd8 {[%clk 0:02:58.5]} 18. Qa3
{[%clk 0:03:01.4]} 18... Rxc2 {[%clk 0:02:56.9]} 19. Ba4 {[%clk 0:02:47.2]}
19... Rc4 {[%clk 0:02:41.3]} 20. Bb3 {[%clk 0:02:41.6]} 20... Rd4 {[%clk
0:02:41.8]} 21. Qxa7 {[%clk 0:02:40.9]} 21... Bd3 {[%clk 0:01:50.4]} 22. Qc5
{[%clk 0:02:22.5]} 22... e4 {[%clk 0:01:40.9]} 23. Rac1 {[%clk 0:02:21.1]} 23...
Be5 {[%clk 0:01:32.2]} 24. Ne7+ {[%clk 0:02:20.4]} 1-0

[Event "*** Titled Tuesday Blitz"]
[Site "Chess.com"]
[Date "2019.01.01"]
[Round "3"]
[White "MatthewG-p4p"]
[Black "attack2mateU"]
[Result "0-1"]
[WhiteElo "2645"]
[BlackElo "2619"]
[TimeControl "180+2"]
[EndTime "13:32:46 PST"]
[Termination "attack2mateU won by resignation"]

1. c4 {[%clk 0:03:00.2]} 1... e5 {[%clk 0:02:56.8]} 2. Nc3 {[%clk 0:03:01.4]}
2... Nf6 {[%clk 0:02:57.1]} 3. g3 {[%clk 0:03:01.7]} 3... d5 {[%clk 0:02:58.3]}
4. cxd5 {[%clk 0:03:03.2]} 4... Nxd5 {[%clk 0:03:00]} 5. Bg2 {[%clk 0:03:04.9]}
5... Nb6 {[%clk 0:02:59.5]} 6. d3 {[%clk 0:03:03.2]} 6... Be7 {[%clk 0:02:59.8]}
7. Nf3 {[%clk 0:03:02.8]} 7... Nc6 {[%clk 0:03:00]} 8. O-O {[%clk 0:03:03]} 8...
O-O {[%clk 0:03:01.5]} 9. a3 {[%clk 0:03:03.1]} 9... Be6 {[%clk 0:03:01]} 10. b4
{[%clk 0:03:02.8]} 10... a5 {[%clk 0:02:59.5]} 11. b5 {[%clk 0:03:02.2]} 11...
Nd4 {[%clk 0:03:00.2]} 12. Bb2 {[%clk 0:03:00.2]} 12... Bb3 {[%clk 0:02:46.7]}
13. Qd2 {[%clk 0:03:00.1]} 13... Nc4 {[%clk 0:02:14.4]} 14. Qc1 {[%clk 0:02:54]}
14... Nxb2 {[%clk 0:02:13.4]} 15. Qxb2 {[%clk 0:02:54.8]} 15... a4 {[%clk
0:02:14.1]} 16. Nd2 {[%clk 0:02:36.4]} 16... Ra7 {[%clk 0:01:36.5]} 17. Nxb3
{[%clk 0:02:24.9]} 17... Nxb3 {[%clk 0:01:30.3]} 18. Rad1 {[%clk 0:02:21.9]}
18... Qd4 {[%clk 0:01:14.6]} 19. e3 {[%clk 0:02:15.7]} 19... Bxa3 {[%clk
0:01:15.2]} 20. Qxa3 {[%clk 0:02:06.2]} 20... Qxc3 {[%clk 0:01:15.7]} 21. Rc1
{[%clk 0:02:07.3]} 21... Nxc1 {[%clk 0:01:14.3]} 0-1

[Event "*** Titled Tuesday Blitz"]
[Site "Chess.com"]
[Date "2019.01.01"]
[Round "3"]
[White "harperchesstt"]
[Black "ori99"]
[Result "1-0"]
[WhiteElo "2123"]
[BlackElo "2006"]
[TimeControl "180+2"]
[EndTime "13:33:20 PST"]
[Termination "harperchesstt won by resignation"]

1. e4 {[%clk 0:03:01.9]} 1... e5 {[%clk 0:03:00.5]} 2. Nf3 {[%clk 0:03:02.3]}
2... Nc6 {[%clk 0:02:59]} 3. Bc4 {[%clk 0:03:02.8]} 3... Nf6 {[%clk 0:02:58.5]}
4. d3 {[%clk 0:03:02.3]} 4... Be7 {[%clk 0:02:57.8]} 5. O-O {[%clk 0:03:02.4]}
5... O-O {[%clk 0:02:56.4]} 6. a4 {[%clk 0:03:03.1]} 6... d5 {[%clk 0:02:34.1]}
7. exd5 {[%clk 0:03:02.1]} 7... Nxd5 {[%clk 0:02:33.6]} 8. Re1 {[%clk
0:03:03.6]} 8... Bf6 {[%clk 0:02:11]} 9. a5 {[%clk 0:02:59.1]} 9... Re8 {[%clk
0:02:06.3]} 10. a6 {[%clk 0:02:57.8]} 10... bxa6 {[%clk 0:01:55.8]} 11. Nbd2
{[%clk 0:02:58.2]} 11... Bg4 {[%clk 0:01:51.3]} 12. h3 {[%clk 0:02:45.5]} 12...
Bh5 {[%clk 0:01:51.3]} 13. g4 {[%clk 0:02:33.9]} 13... Bg6 {[%clk 0:01:51.7]}
14. Ne4 {[%clk 0:02:14.9]} 14... Nb6 {[%clk 0:01:37.4]} 15. Bxa6 {[%clk
0:02:12.7]} 15... Rb8 {[%clk 0:01:27]} 16. Bb5 {[%clk 0:02:12.8]} 16... Re6
{[%clk 0:01:08.7]} 17. Nxf6+ {[%clk 0:01:34.5]} 17... Qxf6 {[%clk 0:01:08.8]}
18. Bg5 {[%clk 0:01:32.3]} 1-0

[Event "*** Titled Tuesday Blitz"]
[Site "Chess.com"]
[Date "2019.01.01"]
[Round "3"]
[White "VeraNebolsina"]
[Black "MikePerelshteyn"]
[Result "1/2-1/2"]
[WhiteElo "2352"]
[BlackElo "2434"]
[TimeControl "180+2"]
[EndTime "13:33:28 PST"]
[Termination "Game drawn by agreement"]

1. e4 {[%clk 0:03:01.9]} 1... e6 {[%clk 0:02:58.5]} 2. d4 {[%clk 0:03:02.1]}
2... d5 {[%clk 0:02:58.9]} 3. exd5 {[%clk 0:03:03.3]} 3... exd5 {[%clk
0:02:59.6]} 4. Nf3 {[%clk 0:03:04.9]} 4... Bd6 {[%clk 0:02:59.2]} 5. Bd3 {[%clk
0:03:05.5]} 5... Ne7 {[%clk 0:02:59.2]} 6. O-O {[%clk 0:03:05.3]} 6... O-O
{[%clk 0:02:59.3]} 7. Nh4 {[%clk 0:03:06]} 7... Ng6 {[%clk 0:02:53.3]} 8. Nf5
{[%clk 0:03:04.2]} 8... Bxf5 {[%clk 0:02:45.7]} 9. Bxf5 {[%clk 0:03:04.9]} 9...
Nd7 {[%clk 0:02:45.4]} 10. Nc3 {[%clk 0:03:00]} 10... c6 {[%clk 0:02:44.4]} 11.
Ne2 {[%clk 0:02:51.2]} 11... Qc7 {[%clk 0:02:36.6]} 12. g3 {[%clk 0:02:50.9]}
12... Rfe8 {[%clk 0:02:34.4]} 13. h4 {[%clk 0:02:46.2]} 13... Nf6 {[%clk
0:02:32.6]} 14. Qd3 {[%clk 0:02:17.7]} 14... Ne4 {[%clk 0:02:31.9]} 15. h5
{[%clk 0:02:05.8]} 15... Nf8 {[%clk 0:02:31.9]} 16. Bf4 {[%clk 0:02:05]} 16...
g6 {[%clk 0:02:14.6]} 17. hxg6 {[%clk 0:02:01.1]} 17... hxg6 {[%clk 0:02:12.9]}
18. Bh3 {[%clk 0:02:00.5]} 18... Ne6 {[%clk 0:02:05.3]} 19. Bxe6 {[%clk
0:01:50.5]} 19... Rxe6 {[%clk 0:02:05.3]} 20. Bxd6 {[%clk 0:01:50.9]} 20... Qxd6
{[%clk 0:02:01.6]} 21. Nf4 {[%clk 0:01:51.7]} 21... Re7 {[%clk 0:02:00.6]} 22.
Rae1 {[%clk 0:01:49.7]} 22... Kg7 {[%clk 0:01:55.7]} 23. Kg2 {[%clk 0:01:34.1]}
23... Rh8 {[%clk 0:01:53.7]} 24. Rh1 {[%clk 0:01:33.6]} 24... Ree8 {[%clk
0:01:51.1]} 25. c3 {[%clk 0:01:24.6]} 25... Rxh1 {[%clk 0:01:47.1]} 26. Rxh1
{[%clk 0:01:24.9]} 26... Rh8 {[%clk 0:01:47.6]} 27. Rxh8 {[%clk 0:01:23.9]}
27... Kxh8 {[%clk 0:01:48.1]} 28. f3 {[%clk 0:01:24.7]} 28... Nf6 {[%clk
0:01:46.1]} 1/2-1/2

[Event "*** Titled Tuesday Blitz"]
[Site "Chess.com"]
[Date "2019.01.01"]
[Round "3"]
[White "ChristopherYoo"]
[Black "pastouche06"]
[Result "1-0"]
[WhiteElo "2645"]
[BlackElo "2430"]
[TimeControl "180+2"]
[EndTime "13:33:34 PST"]
[Termination "ChristopherYoo won by resignation"]

1. e4 {[%clk 0:03:01.9]} 1... c6 {[%clk 0:03:00.5]} 2. d4 {[%clk 0:03:01.3]}
2... d5 {[%clk 0:03:01.9]} 3. exd5 {[%clk 0:03:03.2]} 3... cxd5 {[%clk
0:03:03.2]} 4. Nf3 {[%clk 0:03:04.1]} 4... Nc6 {[%clk 0:03:03.8]} 5. Bb5 {[%clk
0:03:04.4]} 5... Bg4 {[%clk 0:03:03.4]} 6. c4 {[%clk 0:03:00.8]} 6... Nf6 {[%clk
0:03:02.4]} 7. Nc3 {[%clk 0:02:58.8]} 7... e6 {[%clk 0:03:03.4]} 8. h3 {[%clk
0:02:58]} 8... Bxf3 {[%clk 0:02:27.2]} 9. Qxf3 {[%clk 0:02:58]} 9... Be7 {[%clk
0:02:28.5]} 10. c5 {[%clk 0:02:50.7]} 10... O-O {[%clk 0:02:25.1]} 11. Bxc6
{[%clk 0:02:51.2]} 11... bxc6 {[%clk 0:02:25.6]} 12. O-O {[%clk 0:02:33.8]}
12... Nd7 {[%clk 0:02:24.5]} 13. b4 {[%clk 0:02:19.4]} 13... e5 {[%clk
0:02:16.8]} 14. Be3 {[%clk 0:02:16.6]} 14... f5 {[%clk 0:02:06.3]} 15. b5 {[%clk
0:02:01.7]} 15... f4 {[%clk 0:01:46.8]} 16. bxc6 {[%clk 0:01:59.6]} 16... e4
{[%clk 0:01:44]} 17. Qg4 {[%clk 0:01:58.2]} 17... fxe3 {[%clk 0:01:25.1]} 18.
Qxd7 {[%clk 0:01:46]} 18... exf2+ {[%clk 0:01:18.7]} 19. Rxf2 {[%clk 0:01:46.7]}
19... Rxf2 {[%clk 0:01:04]} 20. Qxd8+ {[%clk 0:01:45.9]} 20... Rxd8 {[%clk
0:01:04.9]} 21. Kxf2 {[%clk 0:01:47]} 21... Bf6 {[%clk 0:01:05.9]} 22. Ke3
{[%clk 0:01:41.8]} 22... Bg5+ {[%clk 0:01:05.6]} 23. Ke2 {[%clk 0:01:42.8]}
23... Bf6 {[%clk 0:01:07.2]} 24. c7 {[%clk 0:01:42.4]} 24... Rc8 {[%clk
0:01:03.5]} 25. Nxd5 {[%clk 0:01:40.1]} 1-0

[Event "*** Titled Tuesday Blitz"]
[Site "Chess.com"]
[Date "2019.01.01"]
[Round "3"]
[White "Berardino"]
[Black "Raffael89"]
[Result "1-0"]
[WhiteElo "2411"]
[BlackElo "2197"]
[TimeControl "180+2"]
[EndTime "13:33:44 PST"]
[Termination "Berardino won by resignation"]

1. d4 {[%clk 0:03:01.9]} 1... Nf6 {[%clk 0:03:00.6]} 2. c4 {[%clk 0:03:03.1]}
2... g6 {[%clk 0:03:01.6]} 3. Nc3 {[%clk 0:03:03.8]} 3... Bg7 {[%clk 0:03:03.1]}
4. e4 {[%clk 0:03:04.3]} 4... d6 {[%clk 0:03:04.7]} 5. f3 {[%clk 0:03:00.7]}
5... O-O {[%clk 0:03:05.3]} 6. Bg5 {[%clk 0:03:02.1]} 6... c5 {[%clk 0:03:04.5]}
7. d5 {[%clk 0:03:02.8]} 7... h6 {[%clk 0:03:02.1]} 8. Be3 {[%clk 0:03:03.1]}
8... e6 {[%clk 0:03:03.1]} 9. Qd2 {[%clk 0:03:03]} 9... Kh7 {[%clk 0:03:03.4]}
10. Nge2 {[%clk 0:03:02.5]} 10... exd5 {[%clk 0:03:04.3]} 11. cxd5 {[%clk
0:03:03.5]} 11... Nbd7 {[%clk 0:03:02]} 12. Ng3 {[%clk 0:03:04.3]} 12... Ne5
{[%clk 0:03:02.2]} 13. Be2 {[%clk 0:03:03.2]} 13... a6 {[%clk 0:03:02.3]} 14. a4
{[%clk 0:03:03]} 14... Re8 {[%clk 0:02:53.5]} 15. O-O {[%clk 0:03:02.4]} 15...
Rb8 {[%clk 0:02:54.3]} 16. h3 {[%clk 0:03:03.1]} 16... c4 {[%clk 0:02:18.4]} 17.
f4 {[%clk 0:02:58.6]} 17... Nd3 {[%clk 0:02:18.4]} 18. Bxd3 {[%clk 0:02:59.5]}
18... cxd3 {[%clk 0:02:19.3]} 19. Qxd3 {[%clk 0:03:01.4]} 19... Nd7 {[%clk
0:02:17.2]} 20. Kh2 {[%clk 0:02:40.5]} 20... Qh4 {[%clk 0:02:14.9]} 21. Ba7
{[%clk 0:02:27]} 21... Ra8 {[%clk 0:02:14]} 22. Bd4 {[%clk 0:02:27.1]} 22...
Bxd4 {[%clk 0:02:08.4]} 23. Qxd4 {[%clk 0:02:29]} 23... Nc5 {[%clk 0:02:10.3]}
24. Rae1 {[%clk 0:02:19.9]} 24... Bd7 {[%clk 0:02:02.2]} 25. e5 {[%clk
0:02:19.8]} 25... dxe5 {[%clk 0:01:46.2]} 26. Qxc5 {[%clk 0:02:17.7]} 26... exf4
{[%clk 0:01:47.4]} 27. Nge4 {[%clk 0:02:15.1]} 27... Bf5 {[%clk 0:01:39.8]} 28.
Qd4 {[%clk 0:02:11.8]} 28... Bxe4 {[%clk 0:01:34.4]} 29. Nxe4 {[%clk 0:02:13.7]}
29... Rxe4 {[%clk 0:01:16.4]} 30. Rxe4 {[%clk 0:02:13.5]} 30... Qg3+ {[%clk
0:01:17.7]} 31. Kh1 {[%clk 0:02:09.5]} 31... g5 {[%clk 0:01:17]} 32. Qf6 {[%clk
0:02:06.4]} 32... Rg8 {[%clk 0:01:15.9]} 33. Qxf7+ {[%clk 0:02:05.9]} 33... Rg7
{[%clk 0:01:17.1]} 34. Qf5+ {[%clk 0:02:07.3]} 1-0

[Event "*** Titled Tuesday Blitz"]
[Site "Chess.com"]
[Date "2019.01.01"]
[Round "3"]
[White "TheBigBoss04"]
[Black "rasmussvane"]
[Result "0-1"]
[WhiteElo "2518"]
[BlackElo "2679"]
[TimeControl "180+2"]
[EndTime "13:33:48 PST"]
[Termination "rasmussvane won by checkmate"]

1. b3 {[%clk 0:03:01.9]} 1... d5 {[%clk 0:02:57.5]} 2. Bb2 {[%clk 0:03:03.6]}
2... Bf5 {[%clk 0:02:58.5]} 3. Nf3 {[%clk 0:03:02.7]} 3... e6 {[%clk 0:02:59]}
4. e3 {[%clk 0:02:58.9]} 4... h6 {[%clk 0:03:00.2]} 5. c4 {[%clk 0:03:00.1]}
5... Nf6 {[%clk 0:03:00.8]} 6. h3 {[%clk 0:02:59.9]} 6... c6 {[%clk 0:03:01.5]}
7. Nc3 {[%clk 0:02:57.8]} 7... Nbd7 {[%clk 0:03:02.6]} 8. Be2 {[%clk 0:02:58.6]}
8... Bd6 {[%clk 0:03:03.9]} 9. d4 {[%clk 0:02:54.5]} 9... O-O {[%clk 0:03:04.8]}
10. O-O {[%clk 0:02:52.3]} 10... Qe7 {[%clk 0:03:05.7]} 11. Bd3 {[%clk
0:02:46.3]} 11... Rac8 {[%clk 0:02:54.6]} 12. Bxf5 {[%clk 0:02:45]} 12... exf5
{[%clk 0:02:55.7]} 13. cxd5 {[%clk 0:02:45.1]} 13... cxd5 {[%clk 0:02:55.3]} 14.
Rc1 {[%clk 0:02:42.8]} 14... a6 {[%clk 0:02:56]} 15. Qd3 {[%clk 0:02:40.9]}
15... Qe6 {[%clk 0:02:56.8]} 16. Rc2 {[%clk 0:02:33.9]} 16... Ne4 {[%clk
0:02:45.4]} 17. Rfc1 {[%clk 0:02:34.1]} 17... Rc6 {[%clk 0:02:43.6]} 18. Ne2
{[%clk 0:02:31.4]} 18... Nb8 {[%clk 0:02:43.7]} 19. Ne5 {[%clk 0:02:22.1]} 19...
Rxc2 {[%clk 0:02:43.3]} 20. Rxc2 {[%clk 0:02:22.7]} 20... Rc8 {[%clk 0:02:42.6]}
21. Nf4 {[%clk 0:02:20.5]} 21... Qe8 {[%clk 0:02:41.6]} 22. Nxd5 {[%clk
0:02:17.1]} 22... Rxc2 {[%clk 0:02:39.2]} 23. Qxc2 {[%clk 0:02:19]} 23... Bxe5
{[%clk 0:02:40.7]} 24. dxe5 {[%clk 0:02:19.8]} 24... Nc6 {[%clk 0:02:42.3]} 25.
f3 {[%clk 0:02:15.3]} 25... Ng5 {[%clk 0:02:40.4]} 26. Qxf5 {[%clk 0:02:15.7]}
26... Qd8 {[%clk 0:02:38.1]} 27. e4 {[%clk 0:02:07.4]} 27... Qa5 {[%clk
0:02:38.2]} 28. Qc8+ {[%clk 0:02:00.1]} 28... Kh7 {[%clk 0:02:38.4]} 29. Qf5+
{[%clk 0:01:43.3]} 29... Kh8 {[%clk 0:02:37.2]} 30. h4 {[%clk 0:01:41.8]} 30...
Qe1+ {[%clk 0:02:36.6]} 31. Kh2 {[%clk 0:01:36.3]} 31... Qxh4+ {[%clk
0:02:38.5]} 32. Kg1 {[%clk 0:01:37.5]} 32... Qe1+ {[%clk 0:02:09.2]} 33. Kh2
{[%clk 0:01:37]} 33... Qf2 {[%clk 0:02:00.2]} 34. Bc3 {[%clk 0:01:28.3]} 34...
Nd8 {[%clk 0:01:59.8]} 35. Qc8 {[%clk 0:01:22.3]} 35... Nxf3+ {[%clk 0:01:59.6]}
36. Kh3 {[%clk 0:01:22]} 36... Qh4# {[%clk 0:02:00.6]} 0-1

[Event "*** Titled Tuesday Blitz"]
[Site "Chess.com"]
[Date "2019.01.01"]
[Round "3"]
[White "BillForster"]
[Black "ChessChronicles123"]
[Result "0-1"]
[WhiteElo "1712"]
[BlackElo "1822"]
[TimeControl "180+2"]
[EndTime "13:34:02 PST"]
[Termination "ChessChronicles123 won by resignation"]

1. d4 {[%clk 0:03:01.9]} 1... d5 {[%clk 0:03:00.7]} 2. c4 {[%clk 0:03:02.7]}
2... c6 {[%clk 0:03:01.4]} 3. Nf3 {[%clk 0:03:02.3]} 3... Nf6 {[%clk 0:03:03]}
4. Nc3 {[%clk 0:03:02.5]} 4... g6 {[%clk 0:03:04.2]} 5. Bf4 {[%clk 0:02:57.5]}
5... Bg7 {[%clk 0:03:05.5]} 6. e3 {[%clk 0:02:50.3]} 6... O-O {[%clk 0:03:06.4]}
7. Bd3 {[%clk 0:02:47.4]} 7... Bg4 {[%clk 0:03:04.8]} 8. h3 {[%clk 0:02:44.8]}
8... Bxf3 {[%clk 0:02:57.9]} 9. Qxf3 {[%clk 0:02:44.8]} 9... e6 {[%clk
0:02:59.2]} 10. h4 {[%clk 0:02:25]} 10... Nbd7 {[%clk 0:02:59.8]} 11. g4 {[%clk
0:02:20.7]} 11... Re8 {[%clk 0:02:53.8]} 12. h5 {[%clk 0:02:19.1]} 12... e5
{[%clk 0:02:48.5]} 13. dxe5 {[%clk 0:02:07.6]} 13... Nxe5 {[%clk 0:02:49.3]} 14.
Bxe5 {[%clk 0:02:05.2]} 14... Rxe5 {[%clk 0:02:50.4]} 15. hxg6 {[%clk
0:02:04.3]} 15... hxg6 {[%clk 0:02:36.4]} 16. O-O-O {[%clk 0:01:53.6]} 16... Qd7
{[%clk 0:02:23.7]} 17. Rdg1 {[%clk 0:01:42.6]} 17... Rd8 {[%clk 0:02:08.2]} 18.
cxd5 {[%clk 0:01:10.1]} 18... Nxd5 {[%clk 0:01:54]} 19. Nxd5 {[%clk 0:00:33.6]}
19... Rxd5 {[%clk 0:01:51.8]} 20. Bc4 {[%clk 0:00:30]} 20... Rc5 {[%clk
0:01:47]} 21. Rd1 {[%clk 0:00:20.6]} 21... Rxc4+ {[%clk 0:01:47.5]} 0-1

[Event "*** Titled Tuesday Blitz"]
[Site "Chess.com"]
[Date "2019.01.01"]
[Round "3"]
[White "Manukyan_Artak"]
[Black "jmduque"]
[Result "1-0"]
[WhiteElo "2381"]
[BlackElo "2209"]
[TimeControl "180+2"]
[EndTime "13:34:08 PST"]
[Termination "Manukyan_Artak won by resignation"]

1. e4 {[%clk 0:03:01.9]} 1... e5 {[%clk 0:03:00.4]} 2. Nf3 {[%clk 0:03:02.6]}
2... Nc6 {[%clk 0:03:01.3]} 3. d4 {[%clk 0:03:03.3]} 3... exd4 {[%clk
0:03:02.1]} 4. Nxd4 {[%clk 0:03:04.4]} 4... Nf6 {[%clk 0:03:03.5]} 5. Nxc6
{[%clk 0:03:05.3]} 5... bxc6 {[%clk 0:03:04.5]} 6. e5 {[%clk 0:03:06.6]} 6...
Qe7 {[%clk 0:03:05.4]} 7. Qe2 {[%clk 0:03:07.2]} 7... Nd5 {[%clk 0:03:06.8]} 8.
c4 {[%clk 0:03:08.4]} 8... Nb6 {[%clk 0:03:07.9]} 9. g3 {[%clk 0:03:03.9]} 9...
Ba6 {[%clk 0:03:04.3]} 10. b3 {[%clk 0:03:03.9]} 10... Qe6 {[%clk 0:03:04.8]}
11. h4 {[%clk 0:02:58.2]} 11... Bb4+ {[%clk 0:03:05.8]} 12. Bd2 {[%clk
0:02:54.5]} 12... Qe7 {[%clk 0:03:07.1]} 13. a3 {[%clk 0:02:44.8]} 13... Bxd2+
{[%clk 0:03:07.3]} 14. Nxd2 {[%clk 0:02:45.8]} 14... O-O-O {[%clk 0:03:08.5]}
15. Bg2 {[%clk 0:02:39.2]} 15... Rhe8 {[%clk 0:03:08.5]} 16. f4 {[%clk
0:02:32.3]} 16... f6 {[%clk 0:03:09.5]} 17. Nf3 {[%clk 0:02:25.2]} 17... Kb7
{[%clk 0:03:05]} 18. O-O {[%clk 0:02:24.5]} 18... d6 {[%clk 0:03:04.8]} 19. Rfe1
{[%clk 0:02:19.2]} 19... dxe5 {[%clk 0:03:04.8]} 20. fxe5 {[%clk 0:02:19.8]}
20... Qc5+ {[%clk 0:03:03.7]} 21. Qf2 {[%clk 0:02:20.1]} 21... Nd7 {[%clk
0:03:02.1]} 22. exf6 {[%clk 0:02:03.9]} 22... gxf6 {[%clk 0:02:56.4]} 23. Rad1
{[%clk 0:01:10.3]} 23... Rxe1+ {[%clk 0:02:53.7]} 24. Nxe1 {[%clk 0:01:06.4]}
24... Qxa3 {[%clk 0:02:44.1]} 25. Nc2 {[%clk 0:00:55.5]} 25... Qe7 {[%clk
0:02:44.4]} 26. Qd4 {[%clk 0:00:46.9]} 26... Qc5 {[%clk 0:02:42.7]} 27. Qxc5
{[%clk 0:00:46.2]} 27... Nxc5 {[%clk 0:02:43.2]} 28. Rxd8 {[%clk 0:00:48.1]}
28... Nxb3 {[%clk 0:02:44.5]} 29. Nd4 {[%clk 0:00:46.1]} 29... Bxc4 {[%clk
0:02:45.2]} 30. Bxc6+ {[%clk 0:00:42]} 30... Kb6 {[%clk 0:02:46]} 31. Nxb3
{[%clk 0:00:40.2]} 31... Bxb3 {[%clk 0:02:46.9]} 32. Rb8+ {[%clk 0:00:39.6]}
32... Kxc6 {[%clk 0:02:48.2]} 33. Rxb3 {[%clk 0:00:41.5]} 33... a5 {[%clk
0:02:50]} 34. Kf2 {[%clk 0:00:40]} 34... a4 {[%clk 0:02:51]} 35. Rf3 {[%clk
0:00:40.8]} 35... Kb5 {[%clk 0:02:51.8]} 36. Rxf6 {[%clk 0:00:40.2]} 36... c5
{[%clk 0:02:53.7]} 37. Ke3 {[%clk 0:00:39.3]} 37... a3 {[%clk 0:02:55.1]} 38.
Kd2 {[%clk 0:00:39.5]} 38... a2 {[%clk 0:02:55.1]} 39. Rf1 {[%clk 0:00:39]}
39... Kb4 {[%clk 0:02:56.4]} 40. Kc2 {[%clk 0:00:39.9]} 40... Ka3 {[%clk
0:02:57.7]} 41. g4 {[%clk 0:00:38.9]} 41... c4 {[%clk 0:02:58.7]} 42. g5 {[%clk
0:00:39.7]} 1-0

[Event "*** Titled Tuesday Blitz"]
[Site "Chess.com"]
[Date "2019.01.01"]
[Round "3"]
[White "WorldChampionBulletChess"]
[Black "viktorko131"]
[Result "0-1"]
[WhiteElo "2121"]
[BlackElo "2076"]
[TimeControl "180+2"]
[EndTime "13:34:13 PST"]
[Termination "viktorko131 won by checkmate"]

1. d4 {[%clk 0:02:42.4]} 1... Nf6 {[%clk 0:02:59.1]} 2. c4 {[%clk 0:02:43.4]}
2... e6 {[%clk 0:02:59.6]} 3. Nf3 {[%clk 0:02:45.3]} 3... Bb4+ {[%clk
0:02:59.7]} 4. Bd2 {[%clk 0:02:46.3]} 4... c5 {[%clk 0:03:00.5]} 5. dxc5 {[%clk
0:02:40.7]} 5... Bxc5 {[%clk 0:02:45.8]} 6. Nc3 {[%clk 0:02:40.2]} 6... Nc6
{[%clk 0:02:40.4]} 7. e3 {[%clk 0:02:37.5]} 7... O-O {[%clk 0:02:39.1]} 8. Be2
{[%clk 0:02:35.9]} 8... d5 {[%clk 0:02:37.8]} 9. O-O {[%clk 0:02:34.3]} 9...
dxc4 {[%clk 0:02:00.9]} 10. Bxc4 {[%clk 0:02:36.2]} 10... a6 {[%clk 0:02:01.3]}
11. a3 {[%clk 0:02:37.2]} 11... b5 {[%clk 0:02:00.7]} 12. Ba2 {[%clk 0:02:38.4]}
12... Bb7 {[%clk 0:01:56.6]} 13. Qe2 {[%clk 0:02:37.9]} 13... Qe7 {[%clk
0:01:32]} 14. Rfd1 {[%clk 0:02:35.6]} 14... Bb6 {[%clk 0:01:15.6]} 15. Rac1
{[%clk 0:02:36.5]} 15... Rac8 {[%clk 0:01:13.6]} 16. h3 {[%clk 0:02:36.5]} 16...
Na5 {[%clk 0:01:10.5]} 17. e4 {[%clk 0:02:25.5]} 17... Nc4 {[%clk 0:01:02]} 18.
Be1 {[%clk 0:02:20.1]} 18... Nh5 {[%clk 0:00:49.6]} 19. g3 {[%clk 0:02:10.3]}
19... Nxg3 {[%clk 0:00:49.3]} 20. Qc2 {[%clk 0:02:09.9]} 20... Qf6 {[%clk
0:00:40.4]} 21. Nd2 {[%clk 0:02:05.6]} 21... Qg6 {[%clk 0:00:28.5]} 22. Nxc4
{[%clk 0:01:45.8]} 22... bxc4 {[%clk 0:00:28.8]} 23. e5 {[%clk 0:01:46.1]} 23...
Nf5+ {[%clk 0:00:17.1]} 24. Kh2 {[%clk 0:01:46.3]} 24... Qg2# {[%clk 0:00:17.5]}
0-1

[Event "*** Titled Tuesday Blitz"]
[Site "Chess.com"]
[Date "2019.01.01"]
[Round "3"]
[White "Litti"]
[Black "Matibar"]
[Result "0-1"]
[WhiteElo "2503"]
[BlackElo "2798"]
[TimeControl "180+2"]
[EndTime "13:34:14 PST"]
[Termination "Matibar won by resignation"]

1. e4 {[%clk 0:02:59.5]} 1... g6 {[%clk 0:03:00.5]} 2. d4 {[%clk 0:02:59.5]}
2... d6 {[%clk 0:03:01]} 3. Nf3 {[%clk 0:02:59.7]} 3... Nf6 {[%clk 0:03:02]} 4.
Nc3 {[%clk 0:02:59.8]} 4... c6 {[%clk 0:03:02.7]} 5. Be3 {[%clk 0:02:55.4]} 5...
Bg7 {[%clk 0:03:01.7]} 6. Qd2 {[%clk 0:02:53.9]} 6... Bg4 {[%clk 0:03:02.6]} 7.
Bd3 {[%clk 0:02:50.1]} 7... b5 {[%clk 0:02:55.9]} 8. e5 {[%clk 0:02:42.9]} 8...
b4 {[%clk 0:02:53.9]} 9. Ne4 {[%clk 0:02:05.9]} 9... Nxe4 {[%clk 0:02:41.3]} 10.
Bxe4 {[%clk 0:02:07.8]} 10... d5 {[%clk 0:02:43]} 11. Bd3 {[%clk 0:02:06.4]}
11... Qb6 {[%clk 0:02:44.5]} 12. O-O {[%clk 0:01:59.8]} 12... Bxf3 {[%clk
0:02:44.9]} 13. gxf3 {[%clk 0:02:01.7]} 13... e6 {[%clk 0:02:46.1]} 14. a3
{[%clk 0:01:57.1]} 14... b3 {[%clk 0:02:34.7]} 15. c4 {[%clk 0:01:31.3]} 15...
O-O {[%clk 0:02:34]} 16. c5 {[%clk 0:01:17.2]} 16... Qb7 {[%clk 0:02:32.8]} 17.
Bh6 {[%clk 0:01:17.9]} 17... Qe7 {[%clk 0:02:28.6]} 18. Bxg7 {[%clk 0:01:16.9]}
18... Kxg7 {[%clk 0:02:29.5]} 19. Kh1 {[%clk 0:01:13.1]} 19... Qh4 {[%clk
0:02:29.8]} 20. f4 {[%clk 0:01:04.9]} 20... Nd7 {[%clk 0:02:22.1]} 21. Rg1
{[%clk 0:01:00.3]} 21... f6 {[%clk 0:02:23.6]} 22. f5 {[%clk 0:00:31.5]} 22...
fxe5 {[%clk 0:02:24.3]} 23. fxg6 {[%clk 0:00:26]} 23... Rxf2 {[%clk 0:02:20.6]}
24. gxh7+ {[%clk 0:00:23.9]} 24... Kh8 {[%clk 0:02:20.1]} 25. Rg8+ {[%clk
0:00:14.4]} 25... Rxg8 {[%clk 0:02:21.5]} 26. hxg8=Q+ {[%clk 0:00:16.3]} 26...
Kxg8 {[%clk 0:02:23.1]} 27. Rg1+ {[%clk 0:00:16]} 27... Kh8 {[%clk 0:02:24.1]}
0-1